[Event "Early-Titled-Tuesday-Blitz-May-14-2024"]
[Site "Chess.com"]
[Date "2024.05.14"]
[Round "8"]
[White "platy3"]
[Black "Adar_07"]
[Result "1-0"]
[WhiteElo "2871"]
[BlackElo "2723"]
[TimeControl "180+1"]
[EndTime "9:29:08 PDT"]
[Termination "platy3 won by checkmate"]

1. e4 {[%clk 0:03:00.9]} 1... c6 {[%clk 0:02:58.7]} 2. d4 {[%clk 0:02:59]} 2...
d5 {[%clk 0:02:59.6]} 3. exd5 {[%clk 0:02:59.5]} 3... cxd5 {[%clk 0:03:00.5]} 4.
Bd3 {[%clk 0:03:00]} 4... Nf6 {[%clk 0:03:01]} 5. c3 {[%clk 0:02:58.6]} 5... Nc6
{[%clk 0:02:59.3]} 6. h3 {[%clk 0:02:57.4]} 6... g6 {[%clk 0:02:58.6]} 7. Nf3
{[%clk 0:02:57.7]} 7... Bf5 {[%clk 0:02:58.4]} 8. O-O {[%clk 0:02:58.3]} 8... e6
{[%clk 0:02:58.1]} 9. Re1 {[%clk 0:02:58.1]} 9... Bxd3 {[%clk 0:02:53.4]} 10.
Qxd3 {[%clk 0:02:57.9]} 10... Bg7 {[%clk 0:02:53.8]} 11. Bf4 {[%clk 0:02:57.9]}
11... O-O {[%clk 0:02:53.4]} 12. Nbd2 {[%clk 0:02:58.5]} 12... Qb6 {[%clk
0:02:52]} 13. a4 {[%clk 0:02:58]} 13... Rac8 {[%clk 0:02:49.2]} 14. b4 {[%clk
0:02:54.4]} 14... a6 {[%clk 0:02:19.8]} 15. Nb3 {[%clk 0:02:45.3]} 15... Ne4
{[%clk 0:02:00.9]} 16. Nc5 {[%clk 0:02:44.9]} 16... Nxc5 {[%clk 0:02:00.8]} 17.
bxc5 {[%clk 0:02:45.3]} 17... Qa5 {[%clk 0:01:53.3]} 18. Rab1 {[%clk 0:02:44.8]}
18... Qxa4 {[%clk 0:01:46]} 19. Rxb7 {[%clk 0:02:34.5]} 19... Na5 {[%clk
0:01:46]} 20. Rb4 {[%clk 0:02:23]} 20... Qa3 {[%clk 0:01:36]} 21. Bc1 {[%clk
0:02:04.2]} 21... Qa2 {[%clk 0:01:23.3]} 22. Bb2 {[%clk 0:01:51.4]} 22... Nc4
{[%clk 0:01:05.4]} 23. Ra1 {[%clk 0:01:49.8]} 23... Nxb2 {[%clk 0:01:05.4]} 24.
Qf1 {[%clk 0:01:49.9]} 24... Qxa1 {[%clk 0:00:50.3]} 25. Qxa1 {[%clk 0:01:50.8]}
25... Nc4 {[%clk 0:00:50.9]} 26. Qxa6 {[%clk 0:01:47.5]} 26... e5 {[%clk
0:00:47]} 27. Qb7 {[%clk 0:01:41.6]} 27... Rfd8 {[%clk 0:00:35.2]} 28. Ng5
{[%clk 0:01:40.2]} 28... Rf8 {[%clk 0:00:20.5]} 29. Qxd5 {[%clk 0:01:39.2]}
29... Nd2 {[%clk 0:00:19.6]} 30. Rb7 {[%clk 0:01:33.8]} 30... Ra8 {[%clk
0:00:14.3]} 31. g4 {[%clk 0:01:27]} 31... exd4 {[%clk 0:00:04.8]} 32. Rxf7
{[%clk 0:01:24.6]} 32... dxc3 {[%clk 0:00:05.3]} 33. Rxf8+ {[%clk 0:01:24]}
33... Kxf8 {[%clk 0:00:04.9]} 34. Qf7# {[%clk 0:01:23.1]} 1-0

[Event "Early-Titled-Tuesday-Blitz-May-14-2024"]
[Site "Chess.com"]
[Date "2024.05.14"]
[Round "8"]
[White "FREDERICKtheMATE"]
[Black "RojonR"]
[Result "1/2-1/2"]
[WhiteElo "2673"]
[BlackElo "2613"]
[TimeControl "180+1"]
[EndTime "9:29:14 PDT"]
[Termination "Game drawn by repetition"]

1. Nf3 {[%clk 0:03:00.9]} 1... Nf6 {[%clk 0:02:59.5]} 2. c4 {[%clk 0:03:01.2]}
2... e6 {[%clk 0:02:59.5]} 3. d4 {[%clk 0:03:01]} 3... Bb4+ {[%clk 0:02:59.8]}
4. Bd2 {[%clk 0:03:00.4]} 4... Qe7 {[%clk 0:03:00.1]} 5. e3 {[%clk 0:02:59.7]}
5... Bxd2+ {[%clk 0:02:59.9]} 6. Qxd2 {[%clk 0:02:59.6]} 6... O-O {[%clk
0:02:53.2]} 7. Nc3 {[%clk 0:02:58.2]} 7... d5 {[%clk 0:02:52.8]} 8. Rc1 {[%clk
0:02:56.9]} 8... Rd8 {[%clk 0:02:50.9]} 9. cxd5 {[%clk 0:02:56.4]} 9... exd5
{[%clk 0:02:51.7]} 10. Be2 {[%clk 0:02:54.5]} 10... a6 {[%clk 0:02:46.1]} 11.
Qc2 {[%clk 0:02:54.4]} 11... Nc6 {[%clk 0:02:24.3]} 12. O-O {[%clk 0:02:52.3]}
12... Na7 {[%clk 0:02:23.8]} 13. Ne5 {[%clk 0:02:51.2]} 13... c6 {[%clk
0:02:15.9]} 14. a4 {[%clk 0:02:47.5]} 14... Be6 {[%clk 0:02:12.7]} 15. f4 {[%clk
0:02:46.8]} 15... Nc8 {[%clk 0:02:09.9]} 16. Bd3 {[%clk 0:02:44.9]} 16... Nd6
{[%clk 0:02:08.1]} 17. b4 {[%clk 0:02:42.4]} 17... Rac8 {[%clk 0:01:55.5]} 18.
Qe2 {[%clk 0:02:36.8]} 18... Bd7 {[%clk 0:01:45]} 19. Rb1 {[%clk 0:02:25.7]}
19... Nfe4 {[%clk 0:01:38.7]} 20. Nxe4 {[%clk 0:02:21.6]} 20... dxe4 {[%clk
0:01:39.6]} 21. Bc4 {[%clk 0:02:21]} 21... Be6 {[%clk 0:01:36.6]} 22. Ba2 {[%clk
0:02:13.5]} 22... f6 {[%clk 0:01:32.3]} 23. Nc4 {[%clk 0:02:13.7]} 23... Qf7
{[%clk 0:01:06.8]} 24. Rfc1 {[%clk 0:02:06]} 24... Nxc4 {[%clk 0:00:59.5]} 25.
Bxc4 {[%clk 0:02:06.4]} 25... Bxc4 {[%clk 0:00:45.9]} 26. Rxc4 {[%clk
0:02:07.3]} 26... Rd5 {[%clk 0:00:35.1]} 27. Qc2 {[%clk 0:02:04.8]} 27... Re8
{[%clk 0:00:31.1]} 28. b5 {[%clk 0:02:01]} 28... axb5 {[%clk 0:00:27.8]} 29.
axb5 {[%clk 0:02:01.9]} 29... Rxb5 {[%clk 0:00:21]} 30. Rxb5 {[%clk 0:02:01.4]}
30... cxb5 {[%clk 0:00:21.9]} 31. Rc7 {[%clk 0:02:01.5]} 31... Re7 {[%clk
0:00:18.2]} 32. Rc8+ {[%clk 0:01:57.8]} 32... Re8 {[%clk 0:00:18.5]} 33. Rc7
{[%clk 0:01:54.7]} 33... Re7 {[%clk 0:00:18.6]} 34. Rxe7 {[%clk 0:01:55.2]}
34... Qxe7 {[%clk 0:00:18.8]} 35. Qb3+ {[%clk 0:01:55.7]} 35... Kf8 {[%clk
0:00:12.8]} 36. Qxb5 {[%clk 0:01:56.1]} 36... g6 {[%clk 0:00:13.3]} 37. Kf2
{[%clk 0:01:54.5]} 37... f5 {[%clk 0:00:13.3]} 38. Qb3 {[%clk 0:01:47.1]} 38...
Qh4+ {[%clk 0:00:12.7]} 39. Kf1 {[%clk 0:01:45.2]} 39... Qxh2 {[%clk 0:00:12.3]}
40. Qxb7 {[%clk 0:01:45.4]} 40... Qh1+ {[%clk 0:00:11.7]} 41. Kf2 {[%clk
0:01:45.4]} 41... Qh4+ {[%clk 0:00:12.4]} 42. Kf1 {[%clk 0:01:42.5]} 42... Qh1+
{[%clk 0:00:12.1]} 43. Kf2 {[%clk 0:01:42.2]} 43... Qh4+ {[%clk 0:00:12.5]} 44.
Kf1 {[%clk 0:01:42.4]} 44... Qh1+ {[%clk 0:00:12.9]} 1/2-1/2

[Event "Early-Titled-Tuesday-Blitz-May-14-2024"]
[Site "Chess.com"]
[Date "2024.05.14"]
[Round "8"]
[White "mightysmasher"]
[Black "GeorgiosSouleidis"]
[Result "1/2-1/2"]
[WhiteElo "2563"]
[BlackElo "2671"]
[TimeControl "180+1"]
[EndTime "9:29:14 PDT"]
[Termination "Game drawn by repetition"]

1. e4 {[%clk 0:03:00.9]} 1... c5 {[%clk 0:02:59.8]} 2. c3 {[%clk 0:03:00.3]}
2... g6 {[%clk 0:02:52.2]} 3. d4 {[%clk 0:02:59.6]} 3... cxd4 {[%clk 0:02:52.5]}
4. cxd4 {[%clk 0:02:59.3]} 4... d5 {[%clk 0:02:53.1]} 5. e5 {[%clk 0:02:58.7]}
5... Nc6 {[%clk 0:02:50.9]} 6. Nf3 {[%clk 0:02:58.6]} 6... Bg4 {[%clk
0:02:50.5]} 7. Be2 {[%clk 0:02:58.3]} 7... Bxf3 {[%clk 0:02:49]} 8. Bxf3 {[%clk
0:02:58.4]} 8... e6 {[%clk 0:02:46.5]} 9. O-O {[%clk 0:02:58.2]} 9... Nge7
{[%clk 0:02:45.5]} 10. Nc3 {[%clk 0:02:57.5]} 10... Nf5 {[%clk 0:02:45.1]} 11.
Be3 {[%clk 0:02:56.7]} 11... Bg7 {[%clk 0:02:30]} 12. Rc1 {[%clk 0:02:52.2]}
12... O-O {[%clk 0:02:29.9]} 13. Qd2 {[%clk 0:02:47.9]} 13... Rc8 {[%clk
0:02:25.7]} 14. Rfd1 {[%clk 0:02:44.2]} 14... f6 {[%clk 0:02:14.6]} 15. exf6
{[%clk 0:02:35.4]} 15... Bxf6 {[%clk 0:02:14.8]} 16. Ne2 {[%clk 0:02:33.9]}
16... Qd7 {[%clk 0:01:56.4]} 17. Rc3 {[%clk 0:02:17.9]} 17... Rf7 {[%clk
0:01:50.7]} 18. Rdc1 {[%clk 0:02:15.2]} 18... Rcf8 {[%clk 0:01:47]} 19. a3
{[%clk 0:02:14.3]} 19... Qe7 {[%clk 0:01:21.3]} 20. b4 {[%clk 0:01:55.6]} 20...
a6 {[%clk 0:01:21.4]} 21. Rc5 {[%clk 0:01:45]} 21... h5 {[%clk 0:01:18]} 22. Nf4
{[%clk 0:01:38.7]} 22... Kh7 {[%clk 0:01:12.7]} 23. Re1 {[%clk 0:01:33.8]} 23...
Qd6 {[%clk 0:00:52]} 24. Qd1 {[%clk 0:01:18.3]} 24... Ng7 {[%clk 0:00:42.9]} 25.
Qd3 {[%clk 0:01:16.2]} 25... Nf5 {[%clk 0:00:39.3]} 26. Qd1 {[%clk 0:01:14.9]}
26... Ng7 {[%clk 0:00:35.3]} 27. Qd3 {[%clk 0:00:51.3]} 27... Nf5 {[%clk
0:00:35]} 28. Qd1 {[%clk 0:00:35.6]} 1/2-1/2

[Event "Early-Titled-Tuesday-Blitz-May-14-2024"]
[Site "Chess.com"]
[Date "2024.05.14"]
[Round "8"]
[White "savitha1030"]
[Black "snowlord"]
[Result "0-1"]
[WhiteElo "2559"]
[BlackElo "2942"]
[TimeControl "180+1"]
[EndTime "9:29:16 PDT"]
[Termination "snowlord won by resignation"]

1. Nf3 {[%clk 0:03:00.9]} 1... b6 {[%clk 0:02:58.9]} 2. g3 {[%clk 0:02:51.4]}
2... Bb7 {[%clk 0:02:59.1]} 3. Bg2 {[%clk 0:02:51.8]} 3... c5 {[%clk 0:02:58.6]}
4. b3 {[%clk 0:02:52.2]} 4... Nf6 {[%clk 0:02:55.9]} 5. Bb2 {[%clk 0:02:52.7]}
5... g6 {[%clk 0:02:53.5]} 6. O-O {[%clk 0:02:52.9]} 6... Bg7 {[%clk 0:02:53.8]}
7. d3 {[%clk 0:02:51.6]} 7... d5 {[%clk 0:02:53.1]} 8. Nbd2 {[%clk 0:02:50.6]}
8... O-O {[%clk 0:02:46.7]} 9. Ne5 {[%clk 0:02:41.4]} 9... Ne8 {[%clk
0:02:38.8]} 10. Rb1 {[%clk 0:02:35.5]} 10... Nc7 {[%clk 0:02:30.3]} 11. f4
{[%clk 0:02:30.6]} 11... a5 {[%clk 0:02:26]} 12. e4 {[%clk 0:02:28.4]} 12... a4
{[%clk 0:02:25.4]} 13. Qe2 {[%clk 0:02:24.1]} 13... axb3 {[%clk 0:02:22.8]} 14.
axb3 {[%clk 0:02:25]} 14... Ra2 {[%clk 0:02:22.8]} 15. exd5 {[%clk 0:01:52.4]}
15... Bxd5 {[%clk 0:02:19.8]} 16. Ne4 {[%clk 0:01:51.1]} 16... Nc6 {[%clk
0:02:03.6]} 17. Nxc6 {[%clk 0:01:44.5]} 17... Bxc6 {[%clk 0:02:04.5]} 18. Bxg7
{[%clk 0:01:44.8]} 18... Kxg7 {[%clk 0:02:05.3]} 19. Nc3 {[%clk 0:01:27.7]}
19... Qd4+ {[%clk 0:02:04.7]} 20. Rf2 {[%clk 0:01:24]} 20... Qxc3 {[%clk
0:01:55.2]} 21. Bxc6 {[%clk 0:01:24.4]} 21... Qf6 {[%clk 0:01:48.8]} 22. Qe5
{[%clk 0:01:13.4]} 22... Ne6 {[%clk 0:01:49.1]} 23. c3 {[%clk 0:01:01.2]} 23...
Ra3 {[%clk 0:01:25.7]} 24. Bd5 {[%clk 0:00:58.7]} 24... Qxe5 {[%clk 0:01:25]}
25. fxe5 {[%clk 0:00:58]} 25... Nc7 {[%clk 0:01:25.7]} 26. Be4 {[%clk
0:00:35.8]} 26... Nb5 {[%clk 0:01:25.5]} 27. Rc2 {[%clk 0:00:32.2]} 27... Rd8
{[%clk 0:01:25.5]} 28. Kf2 {[%clk 0:00:29.1]} 28... f5 {[%clk 0:01:23]} 29.
exf6+ {[%clk 0:00:28.6]} 29... exf6 {[%clk 0:01:23.9]} 30. Ke3 {[%clk
0:00:29.3]} 30... Ra7 {[%clk 0:01:13]} 31. Bc6 {[%clk 0:00:27.6]} 31... Na3
{[%clk 0:01:09.1]} 32. Ra2 {[%clk 0:00:24.7]} 32... Re7+ {[%clk 0:01:09.2]} 0-1

[Event "Early-Titled-Tuesday-Blitz-May-14-2024"]
[Site "Chess.com"]
[Date "2024.05.14"]
[Round "8"]
[White "Zq1"]
[Black "cthulhuuu"]
[Result "1-0"]
[WhiteElo "2617"]
[BlackElo "2444"]
[TimeControl "180+1"]
[EndTime "9:29:17 PDT"]
[Termination "Zq1 won by checkmate"]

1. Nf3 {[%clk 0:03:00.9]} 1... Nf6 {[%clk 0:02:59.9]} 2. c4 {[%clk 0:03:01]}
2... g6 {[%clk 0:03:00.4]} 3. Nc3 {[%clk 0:03:01.1]} 3... Bg7 {[%clk 0:03:00.8]}
4. e4 {[%clk 0:03:01.1]} 4... d6 {[%clk 0:03:01.1]} 5. d4 {[%clk 0:03:01.1]}
5... O-O {[%clk 0:03:00]} 6. Be2 {[%clk 0:03:01.2]} 6... e5 {[%clk 0:03:00.1]}
7. O-O {[%clk 0:03:00.9]} 7... exd4 {[%clk 0:02:59.4]} 8. Nxd4 {[%clk
0:03:00.2]} 8... Re8 {[%clk 0:03:00]} 9. f3 {[%clk 0:03:00.2]} 9... a5 {[%clk
0:02:57.8]} 10. Kh1 {[%clk 0:02:57.8]} 10... Na6 {[%clk 0:02:57.9]} 11. Be3
{[%clk 0:02:55.3]} 11... Nc5 {[%clk 0:02:57.9]} 12. Qd2 {[%clk 0:02:53.4]} 12...
Nfd7 {[%clk 0:02:57.2]} 13. Rad1 {[%clk 0:02:45.9]} 13... Ne5 {[%clk 0:02:55.7]}
14. Ndb5 {[%clk 0:02:35]} 14... Bd7 {[%clk 0:02:43.5]} 15. Bxc5 {[%clk
0:02:23.1]} 15... dxc5 {[%clk 0:02:11.9]} 16. f4 {[%clk 0:02:17.4]} 16... Bh6
{[%clk 0:02:11.8]} 17. Qd5 {[%clk 0:01:36.6]} 17... c6 {[%clk 0:01:45.9]} 18.
Qxc5 {[%clk 0:01:35.7]} 18... cxb5 {[%clk 0:00:36.4]} 19. fxe5 {[%clk
0:01:32.6]} 19... Rc8 {[%clk 0:00:18.3]} 20. Qf2 {[%clk 0:01:23.3]} 20... Rf8
{[%clk 0:00:03.5]} 21. cxb5 {[%clk 0:01:12.9]} 21... Qe8 {[%clk 0:00:02.9]} 22.
Nd5 {[%clk 0:01:11.2]} 22... Bg7 {[%clk 0:00:03.3]} 23. Nf6+ {[%clk 0:01:07.4]}
23... Bxf6 {[%clk 0:00:03.7]} 24. exf6 {[%clk 0:01:07.6]} 24... Bxb5 {[%clk
0:00:02.9]} 25. Qf4 {[%clk 0:01:07.1]} 25... Bxe2 {[%clk 0:00:03.3]} 26. Qh6
{[%clk 0:01:06.9]} 26... Kh8 {[%clk 0:00:01.5]} 27. Qg7# {[%clk 0:01:06.6]} 1-0

[Event "Early-Titled-Tuesday-Blitz-May-14-2024"]
[Site "Chess.com"]
[Date "2024.05.14"]
[Round "8"]
[White "VerdeNotte"]
[Black "BelyakovBogdan"]
[Result "1-0"]
[WhiteElo "2850"]
[BlackElo "2599"]
[TimeControl "180+1"]
[EndTime "9:29:22 PDT"]
[Termination "VerdeNotte won by resignation"]

1. e4 {[%clk 0:02:53.1]} 1... e5 {[%clk 0:02:59.8]} 2. Nf3 {[%clk 0:02:50.5]}
2... Nc6 {[%clk 0:02:59.9]} 3. c3 {[%clk 0:02:50.8]} 3... d5 {[%clk 0:02:59.1]}
4. Qa4 {[%clk 0:02:50.7]} 4... f6 {[%clk 0:02:52.2]} 5. d3 {[%clk 0:02:48.4]}
5... Be6 {[%clk 0:02:45.7]} 6. Nbd2 {[%clk 0:02:47.1]} 6... Bd6 {[%clk
0:02:39.4]} 7. d4 {[%clk 0:02:42]} 7... dxe4 {[%clk 0:02:33.1]} 8. Nxe4 {[%clk
0:02:40.5]} 8... exd4 {[%clk 0:02:31]} 9. Ba6 {[%clk 0:02:35.7]} 9... Bd5 {[%clk
0:02:13.4]} 10. Bxb7 {[%clk 0:02:28.3]} 10... Bxe4 {[%clk 0:02:12.4]} 11. Bxc6+
{[%clk 0:02:27.3]} 11... Bxc6 {[%clk 0:02:12.5]} 12. Qxc6+ {[%clk 0:02:28]}
12... Kf7 {[%clk 0:02:08.3]} 13. Qd5+ {[%clk 0:02:25.8]} 13... Kf8 {[%clk
0:01:52.7]} 14. Nxd4 {[%clk 0:02:23.7]} 14... Qe8+ {[%clk 0:01:14.3]} 15. Ne6+
{[%clk 0:02:23.2]} 15... Kf7 {[%clk 0:01:14.1]} 16. Be3 {[%clk 0:02:08.2]} 16...
Qxe6 {[%clk 0:01:09.2]} 17. Qxa8 {[%clk 0:02:07.8]} 17... a6 {[%clk 0:00:57.8]}
18. O-O {[%clk 0:01:52]} 18... Qe5 {[%clk 0:00:43.5]} 19. g3 {[%clk 0:01:51.7]}
19... h5 {[%clk 0:00:43.6]} 20. Bf4 {[%clk 0:01:49.7]} 20... Qf5 {[%clk
0:00:42.1]} 21. Bxd6 {[%clk 0:01:48.1]} 21... cxd6 {[%clk 0:00:43]} 22. Rfe1
{[%clk 0:01:41]} 22... Kg6 {[%clk 0:00:41.1]} 23. Re8 {[%clk 0:01:32.5]} 23...
Kh7 {[%clk 0:00:35.8]} 24. Qxa6 {[%clk 0:01:31.1]} 24... h4 {[%clk 0:00:32.6]}
25. Qxd6 {[%clk 0:01:29.4]} 25... Qf3 {[%clk 0:00:29.9]} 26. Rd1 {[%clk
0:01:22.5]} 26... f5 {[%clk 0:00:21.5]} 27. Qd3 {[%clk 0:01:17.2]} 27... Qh5
{[%clk 0:00:18.7]} 28. Qe2 {[%clk 0:01:10.3]} 28... Qg6 {[%clk 0:00:11.6]} 29.
Rd4 {[%clk 0:01:07.1]} 29... Nh6 {[%clk 0:00:09.7]} 30. Rxh8+ {[%clk 0:01:06.1]}
30... Kxh8 {[%clk 0:00:09.9]} 31. Rxh4 {[%clk 0:01:06.4]} 31... Qe6 {[%clk
0:00:08.4]} 32. Qxe6 {[%clk 0:01:05.1]} 1-0

[Event "Early-Titled-Tuesday-Blitz-May-14-2024"]
[Site "Chess.com"]
[Date "2024.05.14"]
[Round "8"]
[White "francyIM"]
[Black "ketster"]
[Result "1-0"]
[WhiteElo "2868"]
[BlackElo "2646"]
[TimeControl "180+1"]
[EndTime "9:29:23 PDT"]
[Termination "francyIM won by checkmate"]

1. e4 {[%clk 0:03:00.9]} 1... e6 {[%clk 0:02:55.8]} 2. d4 {[%clk 0:03:00.1]}
2... d5 {[%clk 0:02:56.3]} 3. Nc3 {[%clk 0:03:00.1]} 3... Nf6 {[%clk 0:02:55.5]}
4. e5 {[%clk 0:03:00.4]} 4... Nfd7 {[%clk 0:02:55.6]} 5. f4 {[%clk 0:03:00.4]}
5... c5 {[%clk 0:02:56.2]} 6. Nf3 {[%clk 0:03:00.9]} 6... Nc6 {[%clk 0:02:56.4]}
7. Be3 {[%clk 0:03:01]} 7... a6 {[%clk 0:02:57]} 8. a3 {[%clk 0:03:00.7]} 8...
b5 {[%clk 0:02:54.6]} 9. Ne2 {[%clk 0:02:56.2]} 9... Na5 {[%clk 0:02:47.5]} 10.
b3 {[%clk 0:02:40.9]} 10... Nc6 {[%clk 0:02:40]} 11. Ng3 {[%clk 0:02:34.8]}
11... Qb6 {[%clk 0:02:33.3]} 12. c3 {[%clk 0:02:31.4]} 12... a5 {[%clk
0:02:19.9]} 13. Be2 {[%clk 0:02:25.5]} 13... Rb8 {[%clk 0:02:14.1]} 14. f5
{[%clk 0:02:19.4]} 14... cxd4 {[%clk 0:02:05]} 15. Bxd4 {[%clk 0:02:15.3]} 15...
Bc5 {[%clk 0:01:49.9]} 16. b4 {[%clk 0:02:10.7]} 16... axb4 {[%clk 0:01:48.9]}
17. axb4 {[%clk 0:02:10.7]} 17... Bxd4 {[%clk 0:01:46.7]} 18. cxd4 {[%clk
0:02:11.6]} 18... Nxb4 {[%clk 0:01:39.5]} 19. O-O {[%clk 0:02:09.5]} 19... Nc6
{[%clk 0:01:32.9]} 20. Kh1 {[%clk 0:02:09.3]} 20... Nf8 {[%clk 0:01:00.8]} 21.
Nh5 {[%clk 0:02:07.2]} 21... g6 {[%clk 0:00:47.2]} 22. Nf6+ {[%clk 0:02:06.3]}
22... Ke7 {[%clk 0:00:47.4]} 23. fxg6 {[%clk 0:02:03.4]} 23... Nxg6 {[%clk
0:00:43.8]} 24. Rc1 {[%clk 0:02:02]} 24... Bb7 {[%clk 0:00:31.7]} 25. Qd2 {[%clk
0:01:57.4]} 25... h6 {[%clk 0:00:27]} 26. Rc5 {[%clk 0:01:56.3]} 26... b4 {[%clk
0:00:25.1]} 27. Rfc1 {[%clk 0:01:56]} 27... Nf8 {[%clk 0:00:10.5]} 28. Qf4
{[%clk 0:01:54.5]} 28... Nd7 {[%clk 0:00:08.6]} 29. Rxd5 {[%clk 0:01:50.9]}
29... Nxf6 {[%clk 0:00:05.4]} 30. Qxf6+ {[%clk 0:01:49.6]} 30... Ke8 {[%clk
0:00:05.5]} 31. Qxh8+ {[%clk 0:01:49.9]} 31... Ke7 {[%clk 0:00:05.6]} 32. Qf6+
{[%clk 0:01:50.8]} 32... Ke8 {[%clk 0:00:06.2]} 33. Rd6 {[%clk 0:01:49.5]} 33...
b3 {[%clk 0:00:06.4]} 34. Qh8+ {[%clk 0:01:45]} 34... Ke7 {[%clk 0:00:06.2]} 35.
Qf6+ {[%clk 0:01:45.9]} 35... Ke8 {[%clk 0:00:06.6]} 36. Ng5 {[%clk 0:01:37.2]}
36... hxg5 {[%clk 0:00:04.9]} 37. Bh5 {[%clk 0:01:35.8]} 37... Qc7 {[%clk
0:00:04.8]} 38. Rxe6+ {[%clk 0:01:32.5]} 38... Kf8 {[%clk 0:00:02.8]} 39. Qh8#
{[%clk 0:01:32]} 1-0

[Event "Early-Titled-Tuesday-Blitz-May-14-2024"]
[Site "Chess.com"]
[Date "2024.05.14"]
[Round "8"]
[White "esrosenberg"]
[Black "HeroWilczek"]
[Result "0-1"]
[WhiteElo "2328"]
[BlackElo "2538"]
[TimeControl "180+1"]
[EndTime "9:29:24 PDT"]
[Termination "HeroWilczek won by resignation"]

1. e4 {[%clk 0:03:00.9]} 1... c6 {[%clk 0:02:58.1]} 2. Nf3 {[%clk 0:02:59.6]}
2... d5 {[%clk 0:02:58.5]} 3. d3 {[%clk 0:03:00.3]} 3... dxe4 {[%clk 0:02:55.1]}
4. dxe4 {[%clk 0:03:00.1]} 4... Qxd1+ {[%clk 0:02:56]} 5. Kxd1 {[%clk
0:02:59.7]} 5... Bg4 {[%clk 0:02:56.6]} 6. Nd2 {[%clk 0:02:59.5]} 6... e5 {[%clk
0:02:56.3]} 7. c3 {[%clk 0:02:55.7]} 7... Bc5 {[%clk 0:02:55.6]} 8. Kc2 {[%clk
0:02:49.4]} 8... Nd7 {[%clk 0:02:50.9]} 9. Nc4 {[%clk 0:02:20.4]} 9... Bxf3
{[%clk 0:02:43.2]} 10. gxf3 {[%clk 0:02:18.5]} 10... Ke7 {[%clk 0:02:42.2]} 11.
Be3 {[%clk 0:02:13.3]} 11... Bxe3 {[%clk 0:02:38]} 12. Nxe3 {[%clk 0:02:08.3]}
12... g6 {[%clk 0:02:36.8]} 13. h4 {[%clk 0:01:58.6]} 13... Ngf6 {[%clk
0:02:36.6]} 14. Rd1 {[%clk 0:01:49]} 14... Rad8 {[%clk 0:02:30.7]} 15. Bh3
{[%clk 0:01:40.6]} 15... Nh5 {[%clk 0:02:29.9]} 16. Bxd7 {[%clk 0:01:30.6]}
16... Rxd7 {[%clk 0:02:30.8]} 17. Nc4 {[%clk 0:01:29.9]} 17... f6 {[%clk
0:02:28.2]} 18. Rxd7+ {[%clk 0:01:28.1]} 18... Kxd7 {[%clk 0:02:29.1]} 19. Rd1+
{[%clk 0:01:27.5]} 19... Kc7 {[%clk 0:02:29.6]} 20. Ne3 {[%clk 0:01:09.9]} 20...
Nf4 {[%clk 0:02:28.2]} 21. Ng4 {[%clk 0:01:08.5]} 21... Rf8 {[%clk 0:02:26]} 22.
c4 {[%clk 0:00:57.4]} 22... h5 {[%clk 0:02:19.9]} 23. Ne3 {[%clk 0:00:52.4]}
23... a5 {[%clk 0:02:17]} 24. Rg1 {[%clk 0:00:45.5]} 24... Rd8 {[%clk 0:02:14]}
25. b3 {[%clk 0:00:39.2]} 25... b6 {[%clk 0:02:00.2]} 26. a3 {[%clk 0:00:36.1]}
26... b5 {[%clk 0:01:59.5]} 27. cxb5 {[%clk 0:00:35.1]} 27... cxb5 {[%clk
0:02:00.4]} 28. Nd5+ {[%clk 0:00:32.2]} 28... Nxd5 {[%clk 0:01:59]} 29. exd5
{[%clk 0:00:33.1]} 29... Rg8 {[%clk 0:01:56.6]} 30. f4 {[%clk 0:00:26.8]} 30...
Kd6 {[%clk 0:01:51.6]} 31. fxe5+ {[%clk 0:00:26.2]} 31... fxe5 {[%clk 0:01:52]}
32. Kd3 {[%clk 0:00:21.1]} 32... Kxd5 {[%clk 0:01:49.8]} 33. Ke3 {[%clk
0:00:22]} 33... Rc8 {[%clk 0:01:44]} 34. Kd2 {[%clk 0:00:14]} 34... Rc6 {[%clk
0:01:42.9]} 35. Rg5 {[%clk 0:00:11.3]} 35... b4 {[%clk 0:01:38.5]} 36. axb4
{[%clk 0:00:10.4]} 36... axb4 {[%clk 0:01:39.4]} 37. Rg3 {[%clk 0:00:08.6]}
37... Ke4 {[%clk 0:01:35.6]} 38. Rg1 {[%clk 0:00:02]} 38... Kf3 {[%clk 0:01:34]}
39. Rg3+ {[%clk 0:00:00.8]} 39... Kxf2 {[%clk 0:01:33.4]} 40. Rg5 {[%clk
0:00:01.7]} 40... e4 {[%clk 0:01:29.4]} 41. Re5 {[%clk 0:00:01.5]} 41... Rd6+
{[%clk 0:01:28.2]} 0-1

[Event "Early-Titled-Tuesday-Blitz-May-14-2024"]
[Site "Chess.com"]
[Date "2024.05.14"]
[Round "8"]
[White "Aygehovit1992"]
[Black "littlepinkyboy"]
[Result "1-0"]
[WhiteElo "2866"]
[BlackElo "2689"]
[TimeControl "180+1"]
[EndTime "9:29:25 PDT"]
[Termination "Aygehovit1992 won by checkmate"]

1. e4 {[%clk 0:02:57.2]} 1... c5 {[%clk 0:02:59.9]} 2. Nc3 {[%clk 0:02:56.5]}
2... a6 {[%clk 0:02:57.2]} 3. d4 {[%clk 0:02:55.9]} 3... cxd4 {[%clk 0:02:55.4]}
4. Qxd4 {[%clk 0:02:56.8]} 4... Nc6 {[%clk 0:02:53.8]} 5. Qe3 {[%clk 0:02:57.3]}
5... Nf6 {[%clk 0:02:52.5]} 6. Nf3 {[%clk 0:02:45.8]} 6... d6 {[%clk 0:02:52.5]}
7. b3 {[%clk 0:02:41.8]} 7... g6 {[%clk 0:02:49.9]} 8. Bb2 {[%clk 0:02:41.9]}
8... Ng4 {[%clk 0:02:44.3]} 9. Qe2 {[%clk 0:02:34.9]} 9... Bg7 {[%clk
0:02:32.7]} 10. O-O-O {[%clk 0:02:32.7]} 10... O-O {[%clk 0:02:31.8]} 11. h3
{[%clk 0:02:32.8]} 11... Nge5 {[%clk 0:02:31.7]} 12. Nxe5 {[%clk 0:02:31]} 12...
Bxe5 {[%clk 0:02:30.6]} 13. g3 {[%clk 0:02:30.8]} 13... b5 {[%clk 0:02:19]} 14.
f4 {[%clk 0:02:30.6]} 14... Bg7 {[%clk 0:02:19.4]} 15. Bg2 {[%clk 0:02:27.8]}
15... Bb7 {[%clk 0:02:17]} 16. e5 {[%clk 0:02:25]} 16... Qa5 {[%clk 0:02:09.9]}
17. Kb1 {[%clk 0:02:25]} 17... Rad8 {[%clk 0:01:50.8]} 18. Nd5 {[%clk
0:01:50.7]} 18... dxe5 {[%clk 0:01:07.2]} 19. fxe5 {[%clk 0:01:51.6]} 19... Rxd5
{[%clk 0:00:34.7]} 20. Bxd5 {[%clk 0:01:52.5]} 20... Nb4 {[%clk 0:00:35]} 21.
Bxb7 {[%clk 0:01:52.6]} 21... Qxa2+ {[%clk 0:00:35.5]} 22. Kc1 {[%clk
0:01:53.1]} 22... Bh6+ {[%clk 0:00:35.9]} 23. Rd2 {[%clk 0:01:53.7]} 23... Rb8
{[%clk 0:00:35.9]} 24. e6 {[%clk 0:01:35.2]} 24... Rxb7 {[%clk 0:00:30.5]} 25.
exf7+ {[%clk 0:01:31]} 25... Kf8 {[%clk 0:00:30.3]} 26. Qe5 {[%clk 0:01:13]}
26... Rc7 {[%clk 0:00:01.9]} 27. Qh8+ {[%clk 0:01:04.6]} 27... Kxf7 {[%clk
0:00:02.2]} 28. Rf1+ {[%clk 0:01:04.7]} 28... Ke6 {[%clk 0:00:00.7]} 29. Qe5#
{[%clk 0:01:04.6]} 1-0